[Event "Titled Tuesday Blitz November 9 2021"]
[White "Lazavik, Denis"]
[Black "Jobava, Baadur"]
[WhiteFideId "13515110"]
[BlackFideId "13601520"]
[WhiteElo "2436"]
[BlackElo "2731"]
[Result "0-1"]
[Round "11"]
[TimeControl "180+1"]
[Date "2021.11.09"]
[WhiteClock "0:00:05"]
[BlackClock "0:00:13"]

1. d4 {[%clk 0:03:00]}  d5 {[%clk 0:02:59]} 2. c4 {[%clk 0:03:01]}  c6 {[%clk 0:03:00]} 3. Nf3 {[%clk 0:03:01]}  Nf6 {[%clk 0:03:00]} 4. e3 {[%clk 0:03:01]}  Bf5 {[%clk 0:02:59]} 5. Nc3 {[%clk 0:03:00]}  e6 {[%clk 0:02:59]} 6. Nh4 {[%clk 0:03:00]}  g6 {[%clk 0:02:59]} 7. f3 {[%clk 0:02:56]}  h5 {[%clk 0:02:57]} 8. g3 {[%clk 0:02:55]}  Nbd7 {[%clk 0:02:51]} 9. Bg2 {[%clk 0:02:54]}  Nb6 {[%clk 0:02:39]} 10. O-O {[%clk 0:02:53]}  Nxc4 {[%clk 0:02:35]} 11. Qe2 {[%clk 0:02:53]}  Qb6 {[%clk 0:02:28]} 12. e4 {[%clk 0:02:04]}  Qxd4+ {[%clk 0:02:25]} 13. Kh1 {[%clk 0:02:04]}  dxe4 {[%clk 0:02:19]} 14. Bg5 {[%clk 0:02:01]}  Be7 {[%clk 0:02:10]} 15. Rad1 {[%clk 0:01:57]}  Qc5 {[%clk 0:02:10]} 16. Nxf5 {[%clk 0:01:31]}  exf3 {[%clk 0:01:39]} 17. Ng7+ {[%clk 0:00:58]}  Kf8 {[%clk 0:01:38]} 18. Nxe6+ {[%clk 0:00:58]}  fxe6 {[%clk 0:01:39]} 19. Rxf3 {[%clk 0:00:56]}  Qxg5 {[%clk 0:01:36]} 20. Qxc4 {[%clk 0:00:56]}  Kg7 {[%clk 0:01:32]} 21. Qxe6 {[%clk 0:00:55]}  Rae8 {[%clk 0:01:32]} 22. Rdf1 {[%clk 0:00:47]}  h4 {[%clk 0:01:27]} 23. gxh4 {[%clk 0:00:34]}  Qxh4 {[%clk 0:01:14]} 24. Rh3 {[%clk 0:00:34]}  Qb4 {[%clk 0:01:12]} 25. Rxh8 {[%clk 0:00:30]}  Rxh8 {[%clk 0:01:13]} 26. a3 {[%clk 0:00:29]}  Qd6 {[%clk 0:01:10]} 27. Qxd6 {[%clk 0:00:27]}  Bxd6 {[%clk 0:01:11]} 28. h3 {[%clk 0:00:28]}  Be5 {[%clk 0:01:10]} 29. Na4 {[%clk 0:00:28]}  Nh5 {[%clk 0:01:05]} 30. Rd1 {[%clk 0:00:26]}  Ng3+ {[%clk 0:00:58]} 31. Kg1 {[%clk 0:00:26]}  Ne2+ {[%clk 0:00:58]} 32. Kf1 {[%clk 0:00:25]}  Nd4 {[%clk 0:00:57]} 33. Nc5 {[%clk 0:00:24]}  Rf8+ {[%clk 0:00:54]} 34. Kg1 {[%clk 0:00:22]}  Ne2+ {[%clk 0:00:31]} 35. Kh1 {[%clk 0:00:22]}  Rf7 {[%clk 0:00:24]} 36. b4 {[%clk 0:00:21]}  Ng3+ {[%clk 0:00:23]} 37. Kg1 {[%clk 0:00:21]}  Ne2+ {[%clk 0:00:22]} 38. Kh1 {[%clk 0:00:22]}  Nf4 {[%clk 0:00:20]} 39. Bf1 {[%clk 0:00:19]}  b6 {[%clk 0:00:19]} 40. Ne4 {[%clk 0:00:19]}  Nd5 {[%clk 0:00:18]} 41. Bc4 {[%clk 0:00:17]}  Ne3 {[%clk 0:00:16]} 42. Bxf7 {[%clk 0:00:17]}  Nxd1 {[%clk 0:00:16]} 43. Be8 {[%clk 0:00:17]}  Bb2 {[%clk 0:00:15]} 44. Bxc6 {[%clk 0:00:13]}  Bxa3 {[%clk 0:00:15]} 45. b5 {[%clk 0:00:14]}  Ne3 {[%clk 0:00:15]} 46. Kg1 {[%clk 0:00:12]}  Nf5 {[%clk 0:00:15]} 47. Kf2 {[%clk 0:00:10]}  Bc5+ {[%clk 0:00:15]} 48. Ke2 {[%clk 0:00:04]}  Be7 {[%clk 0:00:12]} 49. Kd3 {[%clk 0:00:04]}  Kh6 {[%clk 0:00:13]} 50. Be8 {[%clk 0:00:04]}  Kh5 {[%clk 0:00:09]} 51. Kc4 {[%clk 0:00:05]}  Ne3+ {[%clk 0:00:08]} 52. Kd3 {[%clk 0:00:05]}  Nd5 {[%clk 0:00:07]} 53. Kc4 {[%clk 0:00:05]}  Nf4 {[%clk 0:00:08]} 54. Bd7 {[%clk 0:00:05]}  Kh4 {[%clk 0:00:08]} 55. Nf2 {[%clk 0:00:05]}  Bc5 {[%clk 0:00:08]} 56. Ne4 {[%clk 0:00:06]}  Be3 {[%clk 0:00:08]} 57. Nc3 {[%clk 0:00:04]}  g5 {[%clk 0:00:07]} 58. Nd5 {[%clk 0:00:03]}  Bc5 {[%clk 0:00:07]} 59. Nxf4 {[%clk 0:00:02]}  gxf4 {[%clk 0:00:08]} 60. Kd3 {[%clk 0:00:03]}  f3 {[%clk 0:00:07]} 61. Bc6 {[%clk 0:00:02]}  Kg3 {[%clk 0:00:07]} 62. h4 {[%clk 0:00:02]}  f2 {[%clk 0:00:06]} 63. Ke2 {[%clk 0:00:02]}  Kxh4 {[%clk 0:00:06]} 64. Kf1 {[%clk 0:00:03]}  Kg5 {[%clk 0:00:07]} 65. Bb7 {[%clk 0:00:03]}  Kf6 {[%clk 0:00:08]} 66. Ba6 {[%clk 0:00:04]}  Ke5 {[%clk 0:00:09]} 67. Kg2 {[%clk 0:00:05]}  Kd4 {[%clk 0:00:09]} 68. Kf1 {[%clk 0:00:05]}  Kc3 {[%clk 0:00:10]} 69. Bb7 {[%clk 0:00:06]}  Kd3 {[%clk 0:00:11]} 70. Ba6 {[%clk 0:00:07]}  Kc4 {[%clk 0:00:12]} 71. Kg2 {[%clk 0:00:07]}  Kb4 {[%clk 0:00:13]} 72. Kf1 {[%clk 0:00:07]}  Kc4 {[%clk 0:00:14]} 73. Kg2 {[%clk 0:00:08]}  Kd3 {[%clk 0:00:15]} 74. Kf1 {[%clk 0:00:08]}  Ke3 {[%clk 0:00:15]} 75. Bb7 {[%clk 0:00:07]}  a5 {[%clk 0:00:14]} 76. bxa6 {[%clk 0:00:07]}  b5 {[%clk 0:00:15]} 77. Bd5 {[%clk 0:00:06]}  b4 {[%clk 0:00:15]} 78. Bf7 {[%clk 0:00:05]}  Kd2 {[%clk 0:00:15]} 79. Kg2 {[%clk 0:00:05]}  Ke1 {[%clk 0:00:13]} 80. Bc4 {[%clk 0:00:05]}  b3 {[%clk 0:00:13]} 0-1


[Site "https://www.chess.com"]

[Event "Titled Tuesday Blitz November 9 2021"]
[White "Maly, Alexey"]
[Black "Yeletsky, Ivan"]
[WhiteFideId "14103184"]
[BlackFideId "24180327"]
[WhiteElo "2294"]
[BlackElo "2352"]
[Result "1/2-1/2"]
[Round "11"]
[TimeControl "180+1"]
[Date "2021.11.09"]
[WhiteClock "0:00:55"]
[BlackClock "0:00:04"]

1. d4 {[%clk 0:03:00]}  d6 {[%clk 0:03:00]} 2. c4 {[%clk 0:03:00]}  Nf6 {[%clk 0:03:01]} 3. Nc3 {[%clk 0:03:00]}  Bf5 {[%clk 0:03:00]} 4. Nf3 {[%clk 0:03:00]}  g6 {[%clk 0:02:59]} 5. g3 {[%clk 0:03:00]}  Ne4 {[%clk 0:02:59]} 6. Nxe4 {[%clk 0:02:59]}  Bxe4 {[%clk 0:03:00]} 7. Bg2 {[%clk 0:02:59]}  Bg7 {[%clk 0:03:00]} 8. O-O {[%clk 0:02:59]}  O-O {[%clk 0:03:00]} 9. b3 {[%clk 0:02:59]}  c5 {[%clk 0:02:57]} 10. Bb2 {[%clk 0:02:59]}  Nc6 {[%clk 0:02:58]} 11. e3 {[%clk 0:02:59]}  d5 {[%clk 0:02:25]} 12. cxd5 {[%clk 0:02:55]}  Qxd5 {[%clk 0:02:24]} 13. Rc1 {[%clk 0:02:29]}  cxd4 {[%clk 0:02:24]} 14. exd4 {[%clk 0:02:24]}  Rfd8 {[%clk 0:02:17]} 15. Re1 {[%clk 0:02:21]}  Rac8 {[%clk 0:01:46]} 16. Qe2 {[%clk 0:02:13]}  f5 {[%clk 0:01:13]} 17. Ng5 {[%clk 0:02:09]}  Bxg2 {[%clk 0:01:10]} 18. Rc5 {[%clk 0:02:08]}  Nxd4 {[%clk 0:00:53]} 19. Bxd4 {[%clk 0:02:04]}  Rxc5 {[%clk 0:00:53]} 20. Bxc5 {[%clk 0:01:55]}  e5 {[%clk 0:00:38]} 21. Be3 {[%clk 0:01:55]}  Bh6 {[%clk 0:00:37]} 22. h4 {[%clk 0:01:52]}  Bxg5 {[%clk 0:00:37]} 23. Bxg5 {[%clk 0:01:48]}  Re8 {[%clk 0:00:34]} 24. Rd1 {[%clk 0:01:43]}  Qe4 {[%clk 0:00:21]} 25. Qxe4 {[%clk 0:01:40]}  Bxe4 {[%clk 0:00:22]} 26. Rd7 {[%clk 0:01:40]}  Bc6 {[%clk 0:00:22]} 27. Rc7 {[%clk 0:01:37]}  Re6 {[%clk 0:00:22]} 28. Bh6 {[%clk 0:01:34]}  Rd6 {[%clk 0:00:17]} 29. Rg7+ {[%clk 0:01:32]}  Kh8 {[%clk 0:00:18]} 30. f4 {[%clk 0:01:28]}  e4 {[%clk 0:00:09]} 31. Rf7 {[%clk 0:01:26]}  Rd8 {[%clk 0:00:09]} 32. Kf2 {[%clk 0:01:22]}  a6 {[%clk 0:00:06]} 33. Ke2 {[%clk 0:01:19]}  Bb5+ {[%clk 0:00:06]} 34. Kf2 {[%clk 0:01:15]}  Bc6 {[%clk 0:00:07]} 35. Ke2 {[%clk 0:01:09]}  Bd5 {[%clk 0:00:06]} 36. Rc7 {[%clk 0:01:07]}  Re8 {[%clk 0:00:04]} 37. Ke3 {[%clk 0:01:03]}  Bc6 {[%clk 0:00:04]} 38. Ke2 {[%clk 0:00:59]}  Rd8 {[%clk 0:00:04]} 39. Rf7 {[%clk 0:00:55]} 1/2-1/2


[Site "https://www.chess.com"]

[Event "Titled Tuesday Blitz November 9 2021"]
[White "Manafov, Vugar"]
[Black "Siva Mahadevan"]
[WhiteFideId "13410814"]
[BlackFideId "25043153"]
[WhiteElo "2277"]
[BlackElo "2203"]
[Result "1-0"]
[Round "11"]
[TimeControl "180+1"]
[Date "2021.11.09"]
[WhiteClock "0:00:05"]
[BlackClock "0:00:05"]

1. d4 {[%clk 0:03:00]}  Nf6 {[%clk 0:03:00]} 2. c4 {[%clk 0:02:58]}  g6 {[%clk 0:03:00]} 3. Nc3 {[%clk 0:02:58]}  d5 {[%clk 0:03:00]} 4. cxd5 {[%clk 0:02:59]}  Nxd5 {[%clk 0:03:01]} 5. e4 {[%clk 0:03:00]}  Nxc3 {[%clk 0:03:01]} 6. bxc3 {[%clk 0:03:01]}  Bg7 {[%clk 0:03:02]} 7. Be3 {[%clk 0:03:01]}  O-O {[%clk 0:03:02]} 8. Bc4 {[%clk 0:03:02]}  c5 {[%clk 0:03:02]} 9. Ne2 {[%clk 0:03:03]}  Nc6 {[%clk 0:03:02]} 10. O-O {[%clk 0:03:03]}  Bg4 {[%clk 0:03:02]} 11. f3 {[%clk 0:03:04]}  Bd7 {[%clk 0:03:02]} 12. Rc1 {[%clk 0:02:54]}  Qa5 {[%clk 0:03:01]} 13. Kh1 {[%clk 0:02:41]}  Rac8 {[%clk 0:02:57]} 14. Bb3 {[%clk 0:02:33]}  Rfd8 {[%clk 0:02:54]} 15. d5 {[%clk 0:02:31]}  Ne5 {[%clk 0:02:52]} 16. c4 {[%clk 0:02:30]}  b5 {[%clk 0:02:50]} 17. Bd2 {[%clk 0:02:14]}  Qa6 {[%clk 0:02:49]} 18. Bc3 {[%clk 0:02:11]}  e6 {[%clk 0:02:39]} 19. f4 {[%clk 0:02:04]}  Nxc4 {[%clk 0:02:38]} 20. Bxc4 {[%clk 0:02:01]}  bxc4 {[%clk 0:02:38]} 21. Bxg7 {[%clk 0:02:02]}  Kxg7 {[%clk 0:02:39]} 22. Nc3 {[%clk 0:02:01]}  exd5 {[%clk 0:02:37]} 23. Nxd5 {[%clk 0:01:58]}  Be6 {[%clk 0:02:32]} 24. f5 {[%clk 0:01:56]}  Bxd5 {[%clk 0:02:32]} 25. exd5 {[%clk 0:01:51]}  Qd6 {[%clk 0:02:33]} 26. Qd2 {[%clk 0:01:43]}  Qxd5 {[%clk 0:02:29]} 27. f6+ {[%clk 0:01:40]}  Kh8 {[%clk 0:02:30]} 28. Qh6 {[%clk 0:01:40]}  Rg8 {[%clk 0:02:29]} 29. Rc3 {[%clk 0:01:34]}  Qh5 {[%clk 0:02:23]} 30. Qc1 {[%clk 0:01:29]}  Rce8 {[%clk 0:01:39]} 31. Rxc4 {[%clk 0:01:17]}  Re5 {[%clk 0:01:38]} 32. Ra4 {[%clk 0:01:13]}  Rge8 {[%clk 0:01:31]} 33. Rxa7 {[%clk 0:01:11]}  Re2 {[%clk 0:01:29]} 34. a4 {[%clk 0:01:01]}  Qg4 {[%clk 0:01:28]} 35. Rg1 {[%clk 0:01:01]}  Qe6 {[%clk 0:01:27]} 36. Qc3 {[%clk 0:00:56]}  c4 {[%clk 0:01:19]} 37. a5 {[%clk 0:00:52]}  Re3 {[%clk 0:01:19]} 38. Qd4 {[%clk 0:00:48]}  Re4 {[%clk 0:01:17]} 39. Qc3 {[%clk 0:00:45]}  Qd5 {[%clk 0:01:11]} 40. a6 {[%clk 0:00:41]}  Re3 {[%clk 0:01:01]} 41. Qa1 {[%clk 0:00:33]}  c3 {[%clk 0:00:44]} 42. Rc7 {[%clk 0:00:29]}  Qe5 {[%clk 0:00:44]} 43. a7 {[%clk 0:00:25]}  Qxc7 {[%clk 0:00:39]} 44. a8=Q {[%clk 0:00:24]}  h5 {[%clk 0:00:36]} 45. Q8a5 {[%clk 0:00:21]}  Qf4 {[%clk 0:00:34]} 46. Rf1 {[%clk 0:00:17]}  Qc4 {[%clk 0:00:33]} 47. Qg5 {[%clk 0:00:16]}  Kh7 {[%clk 0:00:32]} 48. Qd1 {[%clk 0:00:14]}  Re2 {[%clk 0:00:29]} 49. Qdd5 {[%clk 0:00:13]}  Qxd5 {[%clk 0:00:26]} 50. Qxd5 {[%clk 0:00:14]}  R8e6 {[%clk 0:00:27]} 51. Kg1 {[%clk 0:00:11]}  c2 {[%clk 0:00:26]} 52. Qc4 {[%clk 0:00:10]}  Rd2 {[%clk 0:00:23]} 53. h4 {[%clk 0:00:08]}  Kg8 {[%clk 0:00:16]} 54. Qc8+ {[%clk 0:00:08]}  Kh7 {[%clk 0:00:14]} 55. Qc4 {[%clk 0:00:09]}  Kg8 {[%clk 0:00:14]} 56. Kh2 {[%clk 0:00:09]}  Ree2 {[%clk 0:00:13]} 57. Qc8+ {[%clk 0:00:08]}  Kh7 {[%clk 0:00:13]} 58. Qb7 {[%clk 0:00:07]}  Kh6 {[%clk 0:00:10]} 59. Qxf7 {[%clk 0:00:03]}  Rxg2+ {[%clk 0:00:10]} 60. Kh3 {[%clk 0:00:03]}  Rh2+ {[%clk 0:00:09]} 61. Kg3 {[%clk 0:00:04]}  Rdg2+ {[%clk 0:00:07]} 62. Kf3 {[%clk 0:00:05]}  Rf2+ {[%clk 0:00:05]} 63. Rxf2 {[%clk 0:00:05]}  Rxf2+ {[%clk 0:00:05]} 64. Kxf2 {[%clk 0:00:05]} 1-0


[Site "https://www.chess.com"]

[Event "Titled Tuesday Blitz November 9 2021"]
[White "Murzin, Volodar"]
[Black "Hansen, Eric"]
[WhiteFideId "44155573"]
[BlackFideId "2606771"]
[WhiteElo "2481"]
[BlackElo "2568"]
[Result "1-0"]
[Round "11"]
[TimeControl "180+1"]
[Date "2021.11.09"]
[WhiteClock "0:00:03"]
[BlackClock "0:00:02"]

1. e4 {[%clk 0:02:59]}  c5 {[%clk 0:02:58]} 2. Nf3 {[%clk 0:02:59]}  e6 {[%clk 0:02:58]} 3. g3 {[%clk 0:02:58]}  Nc6 {[%clk 0:02:58]} 4. Bg2 {[%clk 0:02:59]}  d6 {[%clk 0:02:58]} 5. O-O {[%clk 0:02:59]}  Be7 {[%clk 0:02:58]} 6. c3 {[%clk 0:02:56]}  Nf6 {[%clk 0:02:58]} 7. Qe2 {[%clk 0:02:57]}  e5 {[%clk 0:02:59]} 8. Rd1 {[%clk 0:02:56]}  Qb6 {[%clk 0:02:57]} 9. h3 {[%clk 0:02:55]}  O-O {[%clk 0:02:57]} 10. Na3 {[%clk 0:02:53]}  Re8 {[%clk 0:02:58]} 11. d3 {[%clk 0:02:52]}  h6 {[%clk 0:02:55]} 12. Be3 {[%clk 0:02:49]}  Bf8 {[%clk 0:02:46]} 13. b4 {[%clk 0:02:47]}  Qa6 {[%clk 0:02:41]} 14. Qb2 {[%clk 0:02:40]}  cxb4 {[%clk 0:02:40]} 15. cxb4 {[%clk 0:02:39]}  d5 {[%clk 0:02:41]} 16. Nc2 {[%clk 0:02:34]}  Qa4 {[%clk 0:02:37]} 17. b5 {[%clk 0:02:28]}  dxe4 {[%clk 0:02:20]} 18. dxe4 {[%clk 0:02:22]}  Nb4 {[%clk 0:01:46]} 19. Nce1 {[%clk 0:01:03]}  Be6 {[%clk 0:01:40]} 20. a3 {[%clk 0:01:02]}  Na2 {[%clk 0:01:36]} 21. Rd3 {[%clk 0:00:25]}  Nxe4 {[%clk 0:00:44]} 22. Rxa2 {[%clk 0:00:19]}  Bxa2 {[%clk 0:00:44]} 23. Qxa2 {[%clk 0:00:20]}  Qxb5 {[%clk 0:00:45]} 24. Rb3 {[%clk 0:00:17]}  Qc4 {[%clk 0:00:40]} 25. Qb1 {[%clk 0:00:11]}  Nd6 {[%clk 0:00:40]} 26. Nd2 {[%clk 0:00:10]}  Qe6 {[%clk 0:00:35]} 27. Nd3 {[%clk 0:00:11]}  Rad8 {[%clk 0:00:22]} 28. Nc5 {[%clk 0:00:11]}  Qc8 {[%clk 0:00:22]} 29. Nxb7 {[%clk 0:00:10]}  Nxb7 {[%clk 0:00:22]} 30. Rxb7 {[%clk 0:00:10]}  Re7 {[%clk 0:00:17]} 31. Rxe7 {[%clk 0:00:03]}  Bxe7 {[%clk 0:00:18]} 32. a4 {[%clk 0:00:04]}  Bc5 {[%clk 0:00:18]} 33. Bxc5 {[%clk 0:00:03]}  Qxc5 {[%clk 0:00:17]} 34. Ne4 {[%clk 0:00:03]}  Qd4 {[%clk 0:00:13]} 35. Qb5 {[%clk 0:00:04]}  g6 {[%clk 0:00:06]} 36. g4 {[%clk 0:00:04]}  Kg7 {[%clk 0:00:07]} 37. Qa6 {[%clk 0:00:04]}  Rd7 {[%clk 0:00:06]} 38. Qf6+ {[%clk 0:00:04]}  Kh7 {[%clk 0:00:05]} 39. Kh2 {[%clk 0:00:03]}  Rc7 {[%clk 0:00:04]} 40. Qa6 {[%clk 0:00:02]}  Kg7 {[%clk 0:00:03]} 41. Qf6+ {[%clk 0:00:02]}  Kh7 {[%clk 0:00:04]} 42. h4 {[%clk 0:00:03]}  Kg8 {[%clk 0:00:02]} 43. h5 {[%clk 0:00:03]}  gxh5 {[%clk 0:00:02]} 44. Qxh6 {[%clk 0:00:03]} 1-0


[Site "https://www.chess.com"]

[Event "Titled Tuesday Blitz November 9 2021"]
[White "Nagy, Gabor"]
[Black "Sellitti, Federico"]
[WhiteFideId "737119"]
[BlackFideId "821829"]
[WhiteElo "2534"]
[BlackElo "2622"]
[Result "1-0"]
[Round "11"]
[TimeControl "180+1"]
[Date "2021.11.09"]
[WhiteClock "0:00:58"]
[BlackClock "0:00:04"]

1. c4 {[%clk 0:03:00]}  c5 {[%clk 0:02:59]} 2. g3 {[%clk 0:02:58]}  g6 {[%clk 0:02:58]} 3. Bg2 {[%clk 0:02:59]}  Bg7 {[%clk 0:02:58]} 4. Nc3 {[%clk 0:02:57]}  Nc6 {[%clk 0:02:59]} 5. Nf3 {[%clk 0:02:56]}  Nf6 {[%clk 0:03:00]} 6. d4 {[%clk 0:02:55]}  cxd4 {[%clk 0:03:00]} 7. Nxd4 {[%clk 0:02:56]}  O-O {[%clk 0:03:00]} 8. Nc2 {[%clk 0:02:54]}  d6 {[%clk 0:02:58]} 9. b3 {[%clk 0:02:53]}  Be6 {[%clk 0:02:46]} 10. O-O {[%clk 0:02:47]}  Qd7 {[%clk 0:02:46]} 11. Re1 {[%clk 0:02:45]}  Bh3 {[%clk 0:02:25]} 12. Bh1 {[%clk 0:02:43]}  a6 {[%clk 0:02:25]} 13. Bb2 {[%clk 0:02:39]}  Rac8 {[%clk 0:02:23]} 14. Ne3 {[%clk 0:02:36]}  Rfd8 {[%clk 0:02:12]} 15. Qd2 {[%clk 0:02:35]}  b5 {[%clk 0:01:55]} 16. Rad1 {[%clk 0:02:27]}  bxc4 {[%clk 0:01:41]} 17. Nxc4 {[%clk 0:02:27]}  Qa7 {[%clk 0:01:41]} 18. Ne3 {[%clk 0:02:20]}  Ne5 {[%clk 0:01:33]} 19. Ncd5 {[%clk 0:02:18]}  Nxd5 {[%clk 0:01:29]} 20. Nxd5 {[%clk 0:02:19]}  Ng4 {[%clk 0:01:29]} 21. e3 {[%clk 0:02:11]}  Nh6 {[%clk 0:01:12]} 22. Bxg7 {[%clk 0:02:09]}  Kxg7 {[%clk 0:01:13]} 23. Nf4 {[%clk 0:02:06]}  Bd7 {[%clk 0:01:11]} 24. Bg2 {[%clk 0:02:04]}  Bc6 {[%clk 0:01:11]} 25. e4 {[%clk 0:02:03]}  Ng4 {[%clk 0:01:08]} 26. Bh3 {[%clk 0:01:55]}  Ne5 {[%clk 0:01:05]} 27. Qb2 {[%clk 0:01:48]}  Bd7 {[%clk 0:01:03]} 28. Bg2 {[%clk 0:01:44]}  Bg4 {[%clk 0:00:57]} 29. Rd2 {[%clk 0:01:40]}  Kg8 {[%clk 0:00:57]} 30. h3 {[%clk 0:01:36]}  Bf3 {[%clk 0:00:57]} 31. Nd5 {[%clk 0:01:33]}  h5 {[%clk 0:00:52]} 32. Re3 {[%clk 0:01:31]}  Bxg2 {[%clk 0:00:52]} 33. Kxg2 {[%clk 0:01:32]}  h4 {[%clk 0:00:53]} 34. gxh4 {[%clk 0:01:30]}  Kg7 {[%clk 0:00:46]} 35. Rg3 {[%clk 0:01:29]}  e6 {[%clk 0:00:36]} 36. Ne3 {[%clk 0:01:25]}  Kh7 {[%clk 0:00:36]} 37. f4 {[%clk 0:01:21]}  Nd7 {[%clk 0:00:35]} 38. h5 {[%clk 0:01:20]}  Nf8 {[%clk 0:00:32]} 39. Ng4 {[%clk 0:01:19]}  e5 {[%clk 0:00:30]} 40. fxe5 {[%clk 0:01:15]}  dxe5 {[%clk 0:00:31]} 41. Rf2 {[%clk 0:01:15]}  Qe7 {[%clk 0:00:28]} 42. Qxe5 {[%clk 0:01:12]}  Qxe5 {[%clk 0:00:20]} 43. Nxe5 {[%clk 0:01:12]}  Rd4 {[%clk 0:00:21]} 44. Rxf7+ {[%clk 0:01:11]}  Kh6 {[%clk 0:00:19]} 45. hxg6 {[%clk 0:01:06]}  Rc2+ {[%clk 0:00:19]} 46. Rf2 {[%clk 0:01:05]}  Rxf2+ {[%clk 0:00:14]} 47. Kxf2 {[%clk 0:01:06]}  Kg7 {[%clk 0:00:09]} 48. Ke3 {[%clk 0:01:05]}  Ne6 {[%clk 0:00:09]} 49. Rf3 {[%clk 0:01:03]}  Rd1 {[%clk 0:00:07]} 50. Rf7+ {[%clk 0:01:04]}  Kg8 {[%clk 0:00:08]} 51. Re7 {[%clk 0:01:02]}  Ng5 {[%clk 0:00:08]} 52. Ng4 {[%clk 0:01:02]}  Rf1 {[%clk 0:00:04]} 53. h4 {[%clk 0:01:01]}  Nh3 {[%clk 0:00:03]} 54. Nh6+ {[%clk 0:01:00]}  Kf8 {[%clk 0:00:04]} 55. Ra7 {[%clk 0:00:58]} 1-0


[Site "https://www.chess.com"]

[Event "Titled Tuesday Blitz November 9 2021"]
[White "Ostrovskiy, Andrey"]
[Black "Goryachkina, Aleksandra"]
[WhiteFideId "14110326"]
[BlackFideId "4147103"]
[WhiteElo "2469"]
[BlackElo "2441"]
[Result "1-0"]
[Round "11"]
[TimeControl "180+1"]
[Date "2021.11.09"]
[WhiteClock "0:00:14"]
[BlackClock "0:00:01"]

1. e4 {[%clk 0:03:00]}  c5 {[%clk 0:03:00]} 2. Nf3 {[%clk 0:03:00]}  e6 {[%clk 0:02:58]} 3. d4 {[%clk 0:03:00]}  cxd4 {[%clk 0:02:59]} 4. Nxd4 {[%clk 0:03:01]}  a6 {[%clk 0:02:59]} 5. Bd3 {[%clk 0:02:59]}  Nf6 {[%clk 0:02:57]} 6. O-O {[%clk 0:02:57]}  d6 {[%clk 0:02:57]} 7. c4 {[%clk 0:02:55]}  Qc7 {[%clk 0:02:47]} 8. Nc3 {[%clk 0:02:55]}  b6 {[%clk 0:02:45]} 9. Qe2 {[%clk 0:02:54]}  Be7 {[%clk 0:02:44]} 10. b3 {[%clk 0:02:53]}  Bb7 {[%clk 0:02:44]} 11. Bb2 {[%clk 0:02:54]}  O-O {[%clk 0:02:36]} 12. Rae1 {[%clk 0:02:54]}  Nc6 {[%clk 0:02:33]} 13. Nxc6 {[%clk 0:02:45]}  Bxc6 {[%clk 0:02:28]} 14. f4 {[%clk 0:02:46]}  Nd7 {[%clk 0:02:22]} 15. Nd5 {[%clk 0:02:40]}  exd5 {[%clk 0:02:03]} 16. exd5 {[%clk 0:02:39]}  Bf6 {[%clk 0:02:01]} 17. dxc6 {[%clk 0:02:37]}  Qxc6 {[%clk 0:02:01]} 18. Kh1 {[%clk 0:02:29]}  Qc5 {[%clk 0:01:57]} 19. Bc1 {[%clk 0:02:12]}  Bd4 {[%clk 0:01:48]} 20. Bd2 {[%clk 0:01:55]}  Nf6 {[%clk 0:01:45]} 21. b4 {[%clk 0:01:54]}  Qc7 {[%clk 0:01:43]} 22. Qf3 {[%clk 0:01:50]}  Rae8 {[%clk 0:01:40]} 23. g4 {[%clk 0:01:50]}  g6 {[%clk 0:01:25]} 24. f5 {[%clk 0:01:46]}  Rxe1 {[%clk 0:01:14]} 25. Rxe1 {[%clk 0:01:45]}  Re8 {[%clk 0:01:01]} 26. g5 {[%clk 0:01:39]}  Rxe1+ {[%clk 0:00:57]} 27. Bxe1 {[%clk 0:01:40]}  Nd7 {[%clk 0:00:55]} 28. Qa8+ {[%clk 0:01:26]}  Nf8 {[%clk 0:00:55]} 29. f6 {[%clk 0:01:21]}  h6 {[%clk 0:00:52]} 30. h4 {[%clk 0:01:20]}  hxg5 {[%clk 0:00:51]} 31. hxg5 {[%clk 0:01:21]}  Qd7 {[%clk 0:00:43]} 32. Qf3 {[%clk 0:01:17]}  Qe6 {[%clk 0:00:36]} 33. Bd2 {[%clk 0:01:11]}  Qe5 {[%clk 0:00:22]} 34. Qe4 {[%clk 0:01:00]}  Ne6 {[%clk 0:00:12]} 35. Qxe5 {[%clk 0:00:59]}  dxe5 {[%clk 0:00:07]} 36. Be4 {[%clk 0:00:47]}  Kf8 {[%clk 0:00:07]} 37. Bb7 {[%clk 0:00:39]}  Nc7 {[%clk 0:00:07]} 38. Kg2 {[%clk 0:00:38]}  Ke8 {[%clk 0:00:07]} 39. Kf3 {[%clk 0:00:38]}  Kd7 {[%clk 0:00:07]} 40. Be3 {[%clk 0:00:31]}  Bxe3 {[%clk 0:00:05]} 41. Kxe3 {[%clk 0:00:31]}  Kd6 {[%clk 0:00:05]} 42. Bc8 {[%clk 0:00:20]}  a5 {[%clk 0:00:02]} 43. a3 {[%clk 0:00:20]}  axb4 {[%clk 0:00:02]} 44. axb4 {[%clk 0:00:21]}  Ne6 {[%clk 0:00:01]} 45. c5+ {[%clk 0:00:14]} 1-0


[Site "https://www.chess.com"]